[Event "December 19 Early 2023"]
[Site "https://www.chess.com"]
[Date "2023.12.19"]
[Round "11"]
[White "Tifferet, Shakked"]
[Black "Koellner, Ruben Gideon"]
[Result "0-1"]
[Board "58"]
[TimeControl "180+1"]
[WhiteFideId "2811529"]
[BlackFideId "12993093"]
[WhiteElo "2142"]
[BlackElo "2347"]
[WhiteTeam "ISR"]
[BlackTeam "GER"]
[WhiteClock "0:00:04"]
[BlackClock "0:00:04"]

1. e4 {[%clk 0:03:00]}  c6 {[%clk 0:02:31]} 2. Nc3 {[%clk 0:02:59]}  Nf6 {[%clk 0:02:21]} 3. e5 {[%clk 0:02:56]}  Nd5 {[%clk 0:02:21]} 4. Bc4 {[%clk 0:02:43]}  Nxc3 {[%clk 0:02:11]} 5. dxc3 {[%clk 0:02:32]}  d5 {[%clk 0:02:10]} 6. Bd3 {[%clk 0:02:21]}  g6 {[%clk 0:01:58]} 7. h4 {[%clk 0:02:19]}  Bg7 {[%clk 0:01:56]} 8. Bf4 {[%clk 0:02:13]}  Nd7 {[%clk 0:01:44]} 9. Nf3 {[%clk 0:01:55]}  Nc5 {[%clk 0:01:34]} 10. h5 {[%clk 0:01:56]}  Nxd3+ {[%clk 0:01:33]} 11. Qxd3 {[%clk 0:01:39]}  Bf5 {[%clk 0:01:28]} 12. Qd2 {[%clk 0:01:39]}  Qb6 {[%clk 0:01:15]} 13. h6 {[%clk 0:01:29]}  Bf8 {[%clk 0:01:03]} 14. b4 {[%clk 0:01:13]}  a5 {[%clk 0:00:56]} 15. Be3 {[%clk 0:01:08]}  Qa6 {[%clk 0:00:19]} 16. Nd4 {[%clk 0:01:07]}  e6 {[%clk 0:00:18]} 17. a4 {[%clk 0:00:59]}  axb4 {[%clk 0:00:16]} 18. cxb4 {[%clk 0:00:58]}  Qc4 {[%clk 0:00:17]} 19. f3 {[%clk 0:00:52]}  Bxb4 {[%clk 0:00:16]} 20. g4 {[%clk 0:00:46]}  Bxd2+ {[%clk 0:00:08]} 21. Kxd2 {[%clk 0:00:47]}  c5 {[%clk 0:00:09]} 22. Nb5 {[%clk 0:00:46]}  Qxc2+ {[%clk 0:00:08]} 23. Ke1 {[%clk 0:00:46]}  Bd3 {[%clk 0:00:09]} 24. Nd6+ {[%clk 0:00:42]}  Kd7 {[%clk 0:00:09]} 25. Bd2 {[%clk 0:00:43]}  Rxa4 {[%clk 0:00:08]} 26. Rc1 {[%clk 0:00:42]}  Qb3 {[%clk 0:00:06]} 27. Nxf7 {[%clk 0:00:38]}  Rf8 {[%clk 0:00:06]} 28. Ng5 {[%clk 0:00:38]}  Rfa8 {[%clk 0:00:05]} 29. Nxh7 {[%clk 0:00:37]}  Ra1 {[%clk 0:00:05]} 30. Nf6+ {[%clk 0:00:37]}  Kc6 {[%clk 0:00:04]} 31. Kf2 {[%clk 0:00:35]}  Rxc1 {[%clk 0:00:04]} 32. Rxc1 {[%clk 0:00:35]}  Qb2 {[%clk 0:00:02]} 33. Ke1 {[%clk 0:00:35]}  Qd4 {[%clk 0:00:02]} 34. Kd1 {[%clk 0:00:10]}  Qg1+ {[%clk 0:00:02]} 35. Be1 {[%clk 0:00:11]}  Qg2 {[%clk 0:00:02]} 36. Rxc5+ {[%clk 0:00:03]}  Kxc5 {[%clk 0:00:02]} 37. Nd7+ {[%clk 0:00:04]}  Kc6 {[%clk 0:00:03]} 38. Nb8+ {[%clk 0:00:04]}  Rxb8 {[%clk 0:00:03]} 39. Bf2 {[%clk 0:00:04]}  Qxf2 {[%clk 0:00:04]} 0-1

[Event "December 19 Early 2023"]
[Site "https://www.chess.com"]
[Date "2023.12.19"]
[Round "11"]
[White "Martinez Reyes, Pedro Ramon"]
[Black "Hua, Lefong"]
[Result "0-1"]
[Board "59"]
[TimeControl "180+1"]
[WhiteFideId "3901807"]
[BlackFideId "2602253"]
[WhiteElo "2327"]
[BlackElo "2676"]
[WhiteTeam "VEN"]
[BlackTeam "CAN"]
[WhiteClock "0:01:21"]
[BlackClock "0:01:42"]

1. Nf3 {[%clk 0:02:56]}  Nf6 {[%clk 0:02:58]} 2. g3 {[%clk 0:02:55]}  g6 {[%clk 0:02:58]} 3. Bg2 {[%clk 0:02:54]}  Bg7 {[%clk 0:02:59]} 4. O-O {[%clk 0:02:54]}  O-O {[%clk 0:02:59]} 5. d3 {[%clk 0:02:54]}  c5 {[%clk 0:03:00]} 6. Nbd2 {[%clk 0:02:53]}  Nc6 {[%clk 0:02:59]} 7. e4 {[%clk 0:02:54]}  d6 {[%clk 0:03:00]} 8. Re1 {[%clk 0:02:48]}  Nd7 {[%clk 0:03:00]} 9. c3 {[%clk 0:02:44]}  Rb8 {[%clk 0:03:00]} 10. h4 {[%clk 0:02:42]}  b5 {[%clk 0:02:59]} 11. h5 {[%clk 0:02:39]}  a5 {[%clk 0:02:59]} 12. Nf1 {[%clk 0:02:38]}  b4 {[%clk 0:02:56]} 13. Bd2 {[%clk 0:02:38]}  Nde5 {[%clk 0:02:52]} 14. Nxe5 {[%clk 0:02:34]}  Nxe5 {[%clk 0:02:53]} 15. h6 {[%clk 0:02:29]}  Bh8 {[%clk 0:02:51]} 16. Qe2 {[%clk 0:02:28]}  bxc3 {[%clk 0:02:47]} 17. bxc3 {[%clk 0:02:24]}  Ba6 {[%clk 0:02:46]} 18. c4 {[%clk 0:02:23]}  Rb2 {[%clk 0:02:40]} 19. Reb1 {[%clk 0:02:21]}  Qb8 {[%clk 0:02:33]} 20. Rd1 {[%clk 0:01:58]}  Nc6 {[%clk 0:02:23]} 21. Ne3 {[%clk 0:01:56]}  e6 {[%clk 0:02:17]} 22. Rac1 {[%clk 0:01:48]}  Rxa2 {[%clk 0:02:11]} 23. Ng4 {[%clk 0:01:44]}  Nd4 {[%clk 0:02:05]} 24. Qf1 {[%clk 0:01:44]}  f5 {[%clk 0:02:02]} 25. exf5 {[%clk 0:01:43]}  gxf5 {[%clk 0:02:02]} 26. Ne3 {[%clk 0:01:38]}  Bf6 {[%clk 0:01:55]} 27. Ra1 {[%clk 0:01:33]}  Rxa1 {[%clk 0:01:51]} 28. Rxa1 {[%clk 0:01:34]}  Nb3 {[%clk 0:01:48]} 29. Rb1 {[%clk 0:01:24]}  Nxd2 {[%clk 0:01:44]} 30. Rxb8 {[%clk 0:01:25]}  Nxf1 {[%clk 0:01:44]} 31. Rxf8+ {[%clk 0:01:26]}  Kxf8 {[%clk 0:01:45]} 32. Kxf1 {[%clk 0:01:25]}  a4 {[%clk 0:01:44]} 33. Nc2 {[%clk 0:01:22]}  Bb2 {[%clk 0:01:44]} 34. g4 {[%clk 0:01:21]}  a3 {[%clk 0:01:43]} 35. Nxa3 {[%clk 0:01:21]}  Bxa3 {[%clk 0:01:42]} 36. gxf5 {[%clk 0:01:22]}  exf5 {[%clk 0:01:43]} 37. Bh3 {[%clk 0:01:21]}  Bc8 {[%clk 0:01:42]} 0-1

[Event "December 19 Early 2023"]
[Site "https://www.chess.com"]
[Date "2023.12.19"]
[Round "11"]
[White "Cattaneo, Marco"]
[Black "Ovetchkin, Roman"]
[Result "0-1"]
[Board "60"]
[TimeControl "180+1"]
[WhiteFideId "878332"]
[BlackFideId "4119991"]
[WhiteElo "2186"]
[BlackElo "2381"]
[WhiteTeam "ITA"]
[BlackTeam "RUS"]
[WhiteClock "0:00:00"]
[BlackClock "0:00:02"]

1. e4 {[%clk 0:03:00]}  c6 {[%clk 0:02:36]} 2. d4 {[%clk 0:03:00]}  d5 {[%clk 0:02:37]} 3. exd5 {[%clk 0:03:01]}  cxd5 {[%clk 0:02:36]} 4. Bd3 {[%clk 0:03:02]}  Nc6 {[%clk 0:02:35]} 5. c3 {[%clk 0:03:02]}  Nf6 {[%clk 0:02:35]} 6. Bf4 {[%clk 0:03:02]}  Bg4 {[%clk 0:02:35]} 7. Qb3 {[%clk 0:03:02]}  e5 {[%clk 0:02:36]} 8. dxe5 {[%clk 0:02:58]}  Nh5 {[%clk 0:02:36]} 9. Be3 {[%clk 0:02:54]}  Nxe5 {[%clk 0:02:36]} 10. Bb5+ {[%clk 0:02:53]}  Nc6 {[%clk 0:02:36]} 11. Nd2 {[%clk 0:02:51]}  Nf6 {[%clk 0:02:34]} 12. Ngf3 {[%clk 0:02:50]}  Bd6 {[%clk 0:02:34]} 13. h3 {[%clk 0:02:39]}  Bd7 {[%clk 0:02:27]} 14. O-O {[%clk 0:02:33]}  O-O {[%clk 0:02:25]} 15. Bd3 {[%clk 0:02:32]}  h6 {[%clk 0:02:23]} 16. a4 {[%clk 0:02:22]}  Re8 {[%clk 0:02:21]} 17. Rfe1 {[%clk 0:02:20]}  a6 {[%clk 0:02:15]} 18. Bb6 {[%clk 0:02:09]}  Qc8 {[%clk 0:02:15]} 19. Rxe8+ {[%clk 0:01:55]}  Bxe8 {[%clk 0:02:15]} 20. a5 {[%clk 0:01:54]}  Bd7 {[%clk 0:02:15]} 21. Re1 {[%clk 0:01:51]}  Be6 {[%clk 0:01:47]} 22. Qa4 {[%clk 0:01:40]}  Nd7 {[%clk 0:01:42]} 23. Be3 {[%clk 0:01:27]}  Qc7 {[%clk 0:01:41]} 24. Nb3 {[%clk 0:01:24]}  Re8 {[%clk 0:01:27]} 25. Bf1 {[%clk 0:01:22]}  Qc8 {[%clk 0:01:07]} 26. Nfd4 {[%clk 0:01:16]}  Nde5 {[%clk 0:01:01]} 27. Nxc6 {[%clk 0:01:10]}  Nxc6 {[%clk 0:00:54]} 28. Bc5 {[%clk 0:00:55]}  Bb8 {[%clk 0:00:53]} 29. Nd4 {[%clk 0:00:49]}  Bd7 {[%clk 0:00:52]} 30. Rxe8+ {[%clk 0:00:47]}  Qxe8 {[%clk 0:00:52]} 31. Nxc6 {[%clk 0:00:45]}  Bxc6 {[%clk 0:00:52]} 32. Qd1 {[%clk 0:00:41]}  Bc7 {[%clk 0:00:49]} 33. Bb6 {[%clk 0:00:33]}  Bd6 {[%clk 0:00:46]} 34. Qe2 {[%clk 0:00:29]}  Qe6 {[%clk 0:00:42]} 35. Qxe6 {[%clk 0:00:22]}  fxe6 {[%clk 0:00:42]} 36. c4 {[%clk 0:00:18]}  Kf7 {[%clk 0:00:32]} 37. Bd3 {[%clk 0:00:16]}  Bb4 {[%clk 0:00:21]} 38. f4 {[%clk 0:00:11]}  Bd2 {[%clk 0:00:16]} 39. g3 {[%clk 0:00:10]}  h5 {[%clk 0:00:16]} 40. Kf2 {[%clk 0:00:10]}  g5 {[%clk 0:00:14]} 41. fxg5 {[%clk 0:00:10]}  Bxg5 {[%clk 0:00:13]} 42. Be2 {[%clk 0:00:10]}  Kg6 {[%clk 0:00:13]} 43. cxd5 {[%clk 0:00:10]}  Bxd5 {[%clk 0:00:11]} 44. Be3 {[%clk 0:00:07]}  Bf6 {[%clk 0:00:11]} 45. b4 {[%clk 0:00:06]}  e5 {[%clk 0:00:10]} 46. Bc5 {[%clk 0:00:05]}  h4 {[%clk 0:00:09]} 47. gxh4 {[%clk 0:00:04]}  Bxh4+ {[%clk 0:00:09]} 48. Ke3 {[%clk 0:00:04]}  Bg5+ {[%clk 0:00:09]} 49. Kf2 {[%clk 0:00:04]}  e4 {[%clk 0:00:09]} 50. Be3 {[%clk 0:00:03]}  Bh4+ {[%clk 0:00:10]} 51. Kg2 {[%clk 0:00:04]}  Kf5 {[%clk 0:00:09]} 52. Bd4 {[%clk 0:00:04]}  Kf4 {[%clk 0:00:08]} 53. Bg4 {[%clk 0:00:02]}  e3+ {[%clk 0:00:06]} 54. Kf1 {[%clk 0:00:03]}  Ke4 {[%clk 0:00:07]} 55. Bc5 {[%clk 0:00:02]}  Bc4+ {[%clk 0:00:04]} 56. Be2 {[%clk 0:00:02]}  Be6 {[%clk 0:00:04]} 57. Kg2 {[%clk 0:00:00]}  Bf6 {[%clk 0:00:02]} 0-1

[Event "December 19 Early 2023"]
[Site "https://www.chess.com"]
[Date "2023.12.19"]
[Round "11"]
[White "Bazilius, Augustinas"]
[Black "Ambartsumova, Karina"]
[Result "1-0"]
[Board "66"]
[TimeControl "180+1"]
[WhiteFideId "12832251"]
[BlackFideId "4166299"]
[WhiteElo "2082"]
[BlackElo "2240"]
[WhiteTeam "LTU"]
[BlackTeam "RUS"]
[WhiteClock "0:00:34"]
[BlackClock "0:00:00"]

1. e4 {[%clk 0:02:41]}  e5 {[%clk 0:02:59]} 2. d4 {[%clk 0:02:40]}  exd4 {[%clk 0:02:59]} 3. c3 {[%clk 0:02:40]}  d5 {[%clk 0:02:59]} 4. exd5 {[%clk 0:02:38]}  Qxd5 {[%clk 0:03:00]} 5. Nf3 {[%clk 0:02:36]}  Nc6 {[%clk 0:02:59]} 6. Be2 {[%clk 0:02:35]}  Nf6 {[%clk 0:02:57]} 7. cxd4 {[%clk 0:02:34]}  Bb4+ {[%clk 0:02:51]} 8. Nc3 {[%clk 0:02:34]}  O-O {[%clk 0:02:51]} 9. O-O {[%clk 0:02:32]}  Qd8 {[%clk 0:02:50]} 10. Bg5 {[%clk 0:02:25]}  h6 {[%clk 0:02:40]} 11. Bh4 {[%clk 0:02:25]}  Be7 {[%clk 0:02:37]} 12. Re1 {[%clk 0:02:21]}  Nd5 {[%clk 0:02:27]} 13. Bxe7 {[%clk 0:02:20]}  Ncxe7 {[%clk 0:02:28]} 14. Ne5 {[%clk 0:02:15]}  c6 {[%clk 0:02:26]} 15. Qb3 {[%clk 0:02:11]}  Qb6 {[%clk 0:02:17]} 16. Bc4 {[%clk 0:02:10]}  Be6 {[%clk 0:02:12]} 17. Rad1 {[%clk 0:01:57]}  Rad8 {[%clk 0:02:03]} 18. Ne4 {[%clk 0:01:49]}  Bc8 {[%clk 0:01:28]} 19. Nc5 {[%clk 0:01:44]}  Qxb3 {[%clk 0:01:26]} 20. Bxb3 {[%clk 0:01:45]}  Nf5 {[%clk 0:01:14]} 21. Bc2 {[%clk 0:01:32]}  Nde7 {[%clk 0:01:07]} 22. h3 {[%clk 0:01:27]}  Nxd4 {[%clk 0:00:51]} 23. Ned7 {[%clk 0:01:13]}  Bxd7 {[%clk 0:00:33]} 24. Rxd4 {[%clk 0:01:10]}  Nd5 {[%clk 0:00:29]} 25. Bb3 {[%clk 0:00:54]}  b6 {[%clk 0:00:26]} 26. Nxd7 {[%clk 0:00:53]}  Rxd7 {[%clk 0:00:27]} 27. Rc1 {[%clk 0:00:47]}  Rd6 {[%clk 0:00:20]} 28. Ba4 {[%clk 0:00:42]}  c5 {[%clk 0:00:19]} 29. Rd2 {[%clk 0:00:35]}  Rfd8 {[%clk 0:00:09]} 30. Rcd1 {[%clk 0:00:35]}  b5 {[%clk 0:00:00]} 31. Bxb5 {[%clk 0:00:34]} 1-0

[Event "December 19 Early 2023"]
[Site "https://www.chess.com"]
[Date "2023.12.19"]
[Round "11"]
[White "Eilers, Stefan"]
[Black "Shubenkova, Veronika"]
[Result "1/2-1/2"]
[Board "67"]
[TimeControl "180+1"]
[WhiteFideId "4609565"]
[BlackFideId "44124040"]
[WhiteElo "2460"]
[BlackElo "1967"]
[WhiteTeam "GER"]
[BlackTeam "RUS"]
[WhiteClock "0:00:12"]
[BlackClock "0:00:57"]

1. d4 {[%clk 0:03:00]}  d5 {[%clk 0:02:58]} 2. Nc3 {[%clk 0:03:01]}  e6 {[%clk 0:02:58]} 3. Bf4 {[%clk 0:03:01]}  Bd6 {[%clk 0:02:58]} 4. e3 {[%clk 0:03:01]}  f5 {[%clk 0:02:58]} 5. Nf3 {[%clk 0:02:55]}  Nf6 {[%clk 0:02:58]} 6. Be2 {[%clk 0:02:50]}  O-O {[%clk 0:02:58]} 7. O-O {[%clk 0:02:50]}  c6 {[%clk 0:02:55]} 8. a4 {[%clk 0:02:44]}  Qe7 {[%clk 0:02:55]} 9. a5 {[%clk 0:02:43]}  a6 {[%clk 0:02:55]} 10. Bxd6 {[%clk 0:02:40]}  Qxd6 {[%clk 0:02:55]} 11. Ne5 {[%clk 0:02:41]}  Nbd7 {[%clk 0:02:55]} 12. f4 {[%clk 0:02:42]}  Ne4 {[%clk 0:02:55]} 13. Nxe4 {[%clk 0:02:41]}  fxe4 {[%clk 0:02:55]} 14. Nxd7 {[%clk 0:02:37]}  Bxd7 {[%clk 0:02:54]} 15. c4 {[%clk 0:02:34]}  Qb4 {[%clk 0:02:41]} 16. c5 {[%clk 0:02:24]}  Qxb2 {[%clk 0:02:40]} 17. Rb1 {[%clk 0:02:13]}  Qa3 {[%clk 0:02:34]} 18. Rxb7 {[%clk 0:02:11]}  Qxe3+ {[%clk 0:02:33]} 19. Kh1 {[%clk 0:02:12]}  Be8 {[%clk 0:02:30]} 20. g3 {[%clk 0:02:07]}  Bg6 {[%clk 0:02:29]} 21. Bg4 {[%clk 0:02:00]}  Rf6 {[%clk 0:02:27]} 22. Rb3 {[%clk 0:01:37]}  Qd3 {[%clk 0:02:01]} 23. Rxd3 {[%clk 0:01:35]}  exd3 {[%clk 0:02:02]} 24. Qb3 {[%clk 0:01:30]}  h5 {[%clk 0:01:55]} 25. Bf3 {[%clk 0:01:25]}  Rff8 {[%clk 0:01:48]} 26. Qb7 {[%clk 0:01:18]}  Rfc8 {[%clk 0:01:37]} 27. Rd1 {[%clk 0:00:57]}  Kh7 {[%clk 0:01:28]} 28. Qe7 {[%clk 0:00:48]}  Rab8 {[%clk 0:01:19]} 29. Qg5 {[%clk 0:00:34]}  Rb2 {[%clk 0:01:14]} 30. f5 {[%clk 0:00:21]}  Bxf5 {[%clk 0:01:10]} 31. Qxh5+ {[%clk 0:00:21]}  Kg8 {[%clk 0:01:08]} 32. g4 {[%clk 0:00:19]}  Bh7 {[%clk 0:01:07]} 33. Qe5 {[%clk 0:00:15]}  Rf8 {[%clk 0:01:07]} 34. Qxe6+ {[%clk 0:00:13]}  Kh8 {[%clk 0:01:07]} 35. Bg2 {[%clk 0:00:12]}  Rff2 {[%clk 0:00:59]} 36. Qxc6 {[%clk 0:00:11]}  Rxg2 {[%clk 0:00:56]} 37. Qe8+ {[%clk 0:00:11]}  Bg8 {[%clk 0:00:56]} 38. Qh5+ {[%clk 0:00:11]}  Bh7 {[%clk 0:00:57]} 39. Qe8+ {[%clk 0:00:12]}  Bg8 {[%clk 0:00:57]} 40. Qh5+ {[%clk 0:00:12]}  Bh7 {[%clk 0:00:57]} 41. Qe8+ {[%clk 0:00:12]} 1/2-1/2

[Event "December 19 Early 2023"]
[Site "https://www.chess.com"]
[Date "2023.12.19"]
[Round "11"]
[White "Tay, Junior"]
[Black "Toman, Ondrej"]
[Result "1-0"]
[Board "68"]
[TimeControl "180+1"]
[WhiteFideId "5800439"]
[BlackFideId "344516"]
[WhiteElo "2216"]
[BlackElo "2157"]
[WhiteTeam "SGP"]
[BlackTeam "CZE"]
[WhiteClock "0:00:37"]
[BlackClock "0:00:00"]

1. e4 {[%clk 0:03:00]}  c6 {[%clk 0:03:00]} 2. Nf3 {[%clk 0:03:00]}  d5 {[%clk 0:03:01]} 3. exd5 {[%clk 0:03:00]}  cxd5 {[%clk 0:03:02]} 4. Ne5 {[%clk 0:03:01]}  Nc6 {[%clk 0:03:01]} 5. d4 {[%clk 0:03:01]}  e6 {[%clk 0:03:01]} 6. c3 {[%clk 0:03:01]}  Nf6 {[%clk 0:03:00]} 7. Bd3 {[%clk 0:03:01]}  Nxe5 {[%clk 0:03:00]} 8. dxe5 {[%clk 0:03:01]}  Nd7 {[%clk 0:03:00]} 9. Qe2 {[%clk 0:03:01]}  Nc5 {[%clk 0:02:54]} 10. O-O {[%clk 0:02:36]}  Nxd3 {[%clk 0:02:51]} 11. Qxd3 {[%clk 0:02:37]}  Bd7 {[%clk 0:02:50]} 12. Nd2 {[%clk 0:02:36]}  Rc8 {[%clk 0:02:47]} 13. Nf3 {[%clk 0:02:31]}  Qb6 {[%clk 0:02:36]} 14. a4 {[%clk 0:02:29]}  a5 {[%clk 0:02:23]} 15. Nd4 {[%clk 0:02:24]}  Bc5 {[%clk 0:02:20]} 16. Be3 {[%clk 0:02:21]}  O-O {[%clk 0:02:15]} 17. Kh1 {[%clk 0:02:18]}  Bxd4 {[%clk 0:02:02]} 18. Bxd4 {[%clk 0:02:17]}  Qb3 {[%clk 0:02:00]} 19. f4 {[%clk 0:02:03]}  Bxa4 {[%clk 0:01:43]} 20. Qg3 {[%clk 0:01:51]}  Bb5 {[%clk 0:01:20]} 21. Rf2 {[%clk 0:01:45]}  Qc4 {[%clk 0:00:49]} 22. Rd1 {[%clk 0:01:37]}  Ba4 {[%clk 0:00:38]} 23. Re1 {[%clk 0:01:27]}  Kh8 {[%clk 0:00:29]} 24. h4 {[%clk 0:01:22]}  Rg8 {[%clk 0:00:27]} 25. h5 {[%clk 0:01:21]}  h6 {[%clk 0:00:26]} 26. f5 {[%clk 0:01:20]}  exf5 {[%clk 0:00:21]} 27. e6 {[%clk 0:01:20]}  f6 {[%clk 0:00:19]} 28. Qg6 {[%clk 0:01:17]}  Be8 {[%clk 0:00:11]} 29. Qxf5 {[%clk 0:01:15]}  Rc7 {[%clk 0:00:10]} 30. e7 {[%clk 0:01:11]}  Qc6 {[%clk 0:00:08]} 31. Rfe2 {[%clk 0:01:11]}  Qd7 {[%clk 0:00:07]} 32. Qf4 {[%clk 0:01:09]}  Rc6 {[%clk 0:00:06]} 33. Re3 {[%clk 0:01:05]}  Bxh5 {[%clk 0:00:05]} 34. Rh3 {[%clk 0:01:05]}  Qe8 {[%clk 0:00:05]} 35. g4 {[%clk 0:00:58]}  Bg6 {[%clk 0:00:05]} 36. Re2 {[%clk 0:00:54]}  Bh7 {[%clk 0:00:02]} 37. Reh2 {[%clk 0:00:52]}  Qf7 {[%clk 0:00:02]} 38. g5 {[%clk 0:00:47]}  Qxe7 {[%clk 0:00:01]} 39. Re3 {[%clk 0:00:43]}  Qf7 {[%clk 0:00:01]} 40. gxf6 {[%clk 0:00:39]}  g6 {[%clk 0:00:00]} 41. Re7 {[%clk 0:00:37]} 1-0

[Event "December 19 Early 2023"]
[Site "https://www.chess.com"]
[Date "2023.12.19"]
[Round "11"]
[White "Petrova, Irina"]
[Black "Spata, German"]
[Result "1-0"]
[Board "69"]
[TimeControl "180+1"]
[WhiteFideId "14124122"]
[BlackFideId "113026"]
[WhiteElo "2085"]
[BlackElo "2260"]
[WhiteTeam "UKR"]
[BlackTeam "ARG"]
[WhiteClock "0:00:28"]
[BlackClock "0:00:00"]

1. e4 {[%clk 0:03:00]}  c5 {[%clk 0:02:34]} 2. Nf3 {[%clk 0:03:00]}  a6 {[%clk 0:02:34]} 3. c4 {[%clk 0:02:56]}  Nc6 {[%clk 0:02:29]} 4. Nc3 {[%clk 0:02:56]}  g6 {[%clk 0:02:27]} 5. d4 {[%clk 0:02:52]}  cxd4 {[%clk 0:02:28]} 6. Nxd4 {[%clk 0:02:52]}  Bg7 {[%clk 0:02:29]} 7. Be3 {[%clk 0:02:51]}  d6 {[%clk 0:02:28]} 8. Be2 {[%clk 0:02:50]}  Nf6 {[%clk 0:02:28]} 9. O-O {[%clk 0:02:47]}  O-O {[%clk 0:02:29]} 10. f3 {[%clk 0:02:46]}  Bd7 {[%clk 0:02:29]} 11. Qd2 {[%clk 0:02:45]}  Nxd4 {[%clk 0:02:28]} 12. Bxd4 {[%clk 0:02:45]}  Bc6 {[%clk 0:02:29]} 13. Rfd1 {[%clk 0:02:44]}  Nd7 {[%clk 0:02:27]} 14. Be3 {[%clk 0:02:42]}  Qb8 {[%clk 0:02:19]} 15. Rac1 {[%clk 0:02:42]}  b5 {[%clk 0:02:12]} 16. cxb5 {[%clk 0:02:24]}  axb5 {[%clk 0:02:13]} 17. b3 {[%clk 0:02:23]}  Rc8 {[%clk 0:02:02]} 18. Rc2 {[%clk 0:01:58]}  b4 {[%clk 0:01:54]} 19. Nd5 {[%clk 0:01:49]}  Bxd5 {[%clk 0:01:53]} 20. Rxc8+ {[%clk 0:01:49]}  Qxc8 {[%clk 0:01:53]} 21. exd5 {[%clk 0:01:33]}  Qc3 {[%clk 0:01:34]} 22. Bb5 {[%clk 0:01:24]}  Nc5 {[%clk 0:01:18]} 23. Bc6 {[%clk 0:01:19]}  Ra3 {[%clk 0:01:03]} 24. Bb5 {[%clk 0:00:57]}  Qxd2 {[%clk 0:00:52]} 25. Bxd2 {[%clk 0:00:50]}  Rxa2 {[%clk 0:00:25]} 26. Bxb4 {[%clk 0:00:49]}  Nxb3 {[%clk 0:00:19]} 27. Bc4 {[%clk 0:00:41]}  Ra4 {[%clk 0:00:12]} 28. Bxd6 {[%clk 0:00:36]}  Rxc4 {[%clk 0:00:06]} 29. Bxe7 {[%clk 0:00:33]}  Rd4 {[%clk 0:00:00]} 30. Rb1 {[%clk 0:00:28]} 1-0

[Event "December 19 Early 2023"]
[Site "https://www.chess.com"]
[Date "2023.12.19"]
[Round "11"]
[White "Omariev, Maksim"]
[Black "Ezat, Mohamed"]
[Result "0-1"]
[Board "75"]
[TimeControl "180+1"]
[WhiteFideId "4193423"]
[BlackFideId "10600906"]
[WhiteElo "2452"]
[BlackElo "2367"]
[WhiteTeam "RUS"]
[BlackTeam "EGY"]
[WhiteClock "0:00:00"]
[BlackClock "0:00:40"]

1. g4 {[%clk 0:03:00]}  e5 {[%clk 0:02:49]} 2. Bg2 {[%clk 0:03:00]}  d6 {[%clk 0:02:48]} 3. c4 {[%clk 0:02:59]}  c6 {[%clk 0:02:47]} 4. h3 {[%clk 0:02:59]}  h5 {[%clk 0:02:41]} 5. gxh5 {[%clk 0:02:51]}  Nf6 {[%clk 0:02:41]} 6. Nc3 {[%clk 0:02:49]}  Rxh5 {[%clk 0:02:37]} 7. d4 {[%clk 0:02:31]}  Nbd7 {[%clk 0:02:19]} 8. e4 {[%clk 0:02:19]}  Be7 {[%clk 0:01:58]} 9. Nge2 {[%clk 0:02:17]}  Rh8 {[%clk 0:01:51]} 10. Be3 {[%clk 0:02:17]}  Qc7 {[%clk 0:01:30]} 11. Qd2 {[%clk 0:02:18]}  Nf8 {[%clk 0:01:21]} 12. O-O-O {[%clk 0:02:11]}  Ng6 {[%clk 0:01:15]} 13. f4 {[%clk 0:02:10]}  Nh4 {[%clk 0:01:12]} 14. Rdg1 {[%clk 0:02:09]}  Nxg2 {[%clk 0:01:12]} 15. Rxg2 {[%clk 0:02:10]}  g6 {[%clk 0:01:11]} 16. d5 {[%clk 0:00:51]}  Bd7 {[%clk 0:00:54]} 17. Kb1 {[%clk 0:00:09]}  cxd5 {[%clk 0:00:45]} 18. exd5 {[%clk 0:00:05]}  exf4 {[%clk 0:00:43]} 19. Bxf4 {[%clk 0:00:02]}  Qxc4 {[%clk 0:00:42]} 20. Nd4 {[%clk 0:00:00]}  O-O-O {[%clk 0:00:40]} 0-1

[Event "December 19 Early 2023"]
[Site "https://www.chess.com"]
[Date "2023.12.19"]
[Round "11"]
[White "Melian, Juan Sebastian"]
[Black "Uritsky, Yonathan"]
[Result "1-0"]
[Board "76"]
[TimeControl "180+1"]
[WhiteFideId "3706575"]
[BlackFideId "2825651"]
[WhiteElo "2098"]
[BlackElo "2168"]
[WhiteTeam "PAR"]
[BlackTeam "ISR"]
[WhiteClock "0:01:31"]
[BlackClock "0:01:09"]

1. d4 {[%clk 0:02:24]}  Nf6 {[%clk 0:02:59]} 2. Bg5 {[%clk 0:02:22]}  Ne4 {[%clk 0:02:56]} 3. Bf4 {[%clk 0:02:19]}  c5 {[%clk 0:02:54]} 4. d5 {[%clk 0:02:18]}  d6 {[%clk 0:02:52]} 5. f3 {[%clk 0:02:17]}  Nf6 {[%clk 0:02:52]} 6. Nc3 {[%clk 0:02:15]}  g6 {[%clk 0:02:52]} 7. e4 {[%clk 0:02:13]}  Bg7 {[%clk 0:02:52]} 8. Qd2 {[%clk 0:02:13]}  h6 {[%clk 0:02:46]} 9. h4 {[%clk 0:02:07]}  Nbd7 {[%clk 0:02:45]} 10. a4 {[%clk 0:01:58]}  a6 {[%clk 0:02:40]} 11. Nge2 {[%clk 0:01:58]}  Rb8 {[%clk 0:02:39]} 12. Ng3 {[%clk 0:01:55]}  Qa5 {[%clk 0:02:28]} 13. Ra2 {[%clk 0:01:53]}  Qb4 {[%clk 0:02:05]} 14. Be2 {[%clk 0:01:52]}  Nb6 {[%clk 0:02:03]} 15. a5 {[%clk 0:01:39]}  Nc4 {[%clk 0:02:01]} 16. Bxc4 {[%clk 0:01:39]}  Qxc4 {[%clk 0:02:02]} 17. Ra4 {[%clk 0:01:39]}  Qd4 {[%clk 0:01:38]} 18. Rxd4 {[%clk 0:01:38]}  cxd4 {[%clk 0:01:39]} 19. Qxd4 {[%clk 0:01:38]}  Nh5 {[%clk 0:01:40]} 20. Qd2 {[%clk 0:01:38]}  Nxf4 {[%clk 0:01:40]} 21. Qxf4 {[%clk 0:01:39]}  Be5 {[%clk 0:01:41]} 22. Qe3 {[%clk 0:01:33]}  Bxg3+ {[%clk 0:01:40]} 23. Ke2 {[%clk 0:01:33]}  O-O {[%clk 0:01:12]} 24. f4 {[%clk 0:01:32]}  Bg4+ {[%clk 0:01:09]} 25. Kd3 {[%clk 0:01:31]} 1-0